[Event "Hungarian Youth-ch U12 2022"]
[Site "Eger"]
[Date "2022.07.24"]
[Round "2.2"]
[White "Lehocz, Jozsef Jr."]
[Black "Karacsonyi, Bank"]
[Result "0-1"]
[ECO "A35"]
[WhiteElo "1919"]
[BlackElo "1791"]
[Annotator "TA"]
[PlyCount "162"]
[EventDate "2022.07.21"]
[EventType "tourn"]
[EventCountry "HUN"]
[SourceTitle "playchess.com"]
[Source "ChessBase"]
[SourceQuality "1"]
[TimeControl "40/5400+30:1800+30"]

{[%evp 19,162,11,5,-43,-20,-28,36,47,53,49,41,46,39,35,44,62,45,0,0,0,0,0,0,-23,-23,-23,-16,-22,-20,-20,0,0,0,-28,-14,-18,-13,-41,-36,-40,-31,-37,-26,-42,-44,-43,-44,-49,-11,-12,-9,-31,-13,-35,0,0,0,-14,0,-22,0,-23,-18,-28,-28,-35,-35,-95,-25,-60,-31,-49,-82,-170,-144,-125,-9,-9,-9,-9,-9,-24,0,0,0,0,100,100,230,0,0,0,0,0,0,0,0,0,0,-29968,-29969,-4788,0,0,0,0,0,0,0,-5143,-4947,-29943,-12850,-5591,-5089,-2875,-1691,-29976,-1057,-634,-433,-29972,-29973,-29971,-798,-772,-776,-4598,-379,-259,0,-29978,-29978,-29978,-29977,-29982,-29983,-29983,-29984,-29984,-29985,-29984,-29986,-29986,-29987]} 1. Nf3 {[%emt 0:00:33]} Nf6 {[%emt 0:00:36]} 2. c4 {[%emt 0:00:05]} c5 {[%emt 0:00:03]} 3. Nc3 {[%emt 0:00:52]} Nc6 {[%emt 0:00:16]} 4. g3 {[%emt 0:01:40]} d5 {[%emt 0:00:33]} 5. cxd5 {[%emt 0:00:36]} Nxd5 {[%emt 0:00:11]} 6. Bg2 {[%emt 0:01:56]} Nc7 {[%emt 0:03:29]} 7. O-O {[%emt 0:01:10]} e5 {[%emt 0:00:15]} 8. d3 {[%emt 0:00:27]} Be7 {[%emt 0:00:20]} 9. Be3 {[%emt 0:01:24]} O-O {[%emt 0:00:28]} 10. Rc1 {[%emt 0:01:33]} Bd7 {[%emt 0:00:06]} 11. Qb3 {[%emt 0:11:05] [#] A34: Symmetrical English: 2 Nc3, lines with ...d5.} (11. Nd2) (11. Na4 $11 {deserves consideration.}) 11... Rb8 $146 {[%emt 0:07:34]} ({Predecessor:} 11... b6 12. Nd5 Nxd5 13. Qxd5 Qc7 14. Qb3 Be6 15. Qa4 Bd5 16. a3 Qd6 17. Nd2 Bxg2 18. Kxg2 {½-½ (34) Canela Vasquez,M (1925)-Hernandez Lora,M (1855) Santo Domingo 2021}) 12. Nd5 {[%emt 0:07:36]} Nxd5 {[%emt 0:14:25]} (12... b6 $1 $11) 13. Qxd5 $14 {[%emt 0:00:13] White is slightly better.} b6 {[%emt 0:00:09]} 14. Nxe5 {[%emt 0:09:12]} Nxe5 {[%emt 0:01:14]} 15. Qxe5 {[%emt 0:00:05]} Bf6 {[%emt 0:00:12]} 16. Qd6 {[%emt 0:00:28]} Bxb2 {[%emt 0:00:40]} 17. Rb1 {[%emt 0:00:32]} Bf6 {[%emt 0:05:09]} 18. Bf4 {[%emt 0:10:51]} (18. Bxc5 $5 {[%cal Rd6f8]} Re8 19. Be3 $14) 18... Rc8 {[%emt 0:00:19][%cal Bb8c8,Bc8d8,Bd8d4][%mdl 32]} 19. Bb7 {[%emt 0:10:09]} Bh3 {[%emt 0:01:21]} 20. Rfc1 {[%emt 0:01:24]} Re8 {[%emt 0:05:03]} 21. Rc2 {[%emt 0:06:03]} Qxd6 {[%emt 0:03:23]} 22. Bxd6 {[%emt 0:00:07]} Rcd8 {[%emt 0:00:14]} 23. Bc7 {[%emt 0:04:15][%cal Bd6c7,Bc7f4,Bf4e3][%mdl 32]} Rd4 {[%emt 0:00:16] White must now prevent ...Re7.} 24. Bf4 {[%emt 0:00:50]} g5 {[%emt 0:01:10]} 25. Be3 {[%emt 0:00:22]} Rd6 {[%emt 0:00:12]} 26. Bf3 {[%emt 0:07:58]} Bd7 {[%emt 0:01:32]} 27. Rc4 {[%emt 0:00:59]} h6 {[%emt 0:05:54]} 28. Rbc1 {[%emt 0:02:03]} Bb5 {[%emt 0:03:03]} 29. Re4 {[%emt 0:02:20]} Rxe4 {[%emt 0:00:16]} 30. Bxe4 {[%emt 0:00:15]} Bd4 {[%emt 0:01:48]} 31. Kg2 {[%emt 0:01:09]} Bxe3 {[%emt 0:00:21]} 32. fxe3 $15 {[%emt 0:00:07][%mdl 4096] Endgame KRB-KRB} Kg7 {[%emt 0:04:52]} 33. Rb1 {[%emt 0:00:10]} Bc6 {[%emt 0:00:08]} 34. Bxc6 {[%emt 0:00:32]} Rxc6 $11 {[%emt 0:00:05] KR-KR} 35. Rc1 {[%emt 0:00:54]} Re6 {[%emt 0:00:18]} 36. e4 {[%emt 0:02:15]} h5 {[%emt 0:03:18][%cal Of7f5]} 37. Kf3 {[%emt 0:00:47]} Kg6 {[%emt 0:01:40]} 38. Ke3 {[%emt 0:04:27]} Rd6 {[%emt 0:01:16]} 39. Rf1 {[%emt 0:00:53]} f6 {[%emt 0:00:38]} 40. Rf5 {[%emt 0:00:00]} Rd4 {[%emt 0:00:00]} 41. Rd5 {[%emt 0:12:20]} Ra4 {[%emt 0:06:35]} 42. Rd6 {[%emt 0:00:27]} Kf7 {[%emt 0:00:27]} (42... Rxa2 43. e5 $11) 43. Rd7+ {[%emt 0:00:12]} (43. h4 $15) 43... Ke6 $1 $17 {[%emt 0:03:06]} 44. Rh7 {[%emt 0:00:32]} Rxa2 {[%emt 0:00:18]} 45. Rxh5 {[%emt 0:00:05]} b5 {[%emt 0:00:19]} 46. h4 {[%emt 0:05:04]} b4 {[%emt 0:11:25]} 47. Rh7 {[%emt 0:04:25]} (47. hxg5 fxg5 48. Rh6+ (48. Rxg5 $2 b3 $19) 48... Kf7 49. Rh7+ Kg6 $17) 47... gxh4 {[%emt 0:03:42]} ({Black should play} 47... a5 $17 {Threatens to win with ...gxh4.} 48. h5 a4) 48. gxh4 $11 {[%emt 0:00:16]} a5 {[%emt 0:05:49] Strongly threatening ...a4.} 49. h5 $1 {[%emt 0:04:47]} Ra1 {[%emt 0:01:33] aiming for ...a4.} 50. h6 {[%emt 0:06:59]} Rh1 {[%emt 0:01:07]} (50... a4 $5 {[%cal Ra1h1]} 51. Rb7 Rh1 $15) 51. Ra7 {[%emt 0:05:39]} b3 {[%emt 0:02:47]} 52. h7 $1 {[%emt 0:00:26]} a4 {[%emt 0:01:03]} (52... b2 $11 53. Rb7 Kd6) 53. Rxa4 $16 {[%emt 0:00:32]} Kd6 {[%emt 0:03:13]} (53... Rxh7 $16 54. Ra6+ Ke5) 54. Ra3 $2 {[%emt 0:02:07]} ({White has to play} 54. Ra6+ $18 Kc7 55. Ra1 $3 {[%mdl 512]} (55. Rxf6 Rxh7 56. Kd2 Rh1 $16)) 54... c4 $1 $11 {[%emt 0:00:52]} 55. dxc4 {[%emt 0:00:36]} b2 {[%emt 0:00:13]} 56. Rb3 {[%emt 0:05:12] Rb6+ is the strong threat.} Rh3+ {[%emt 0:00:07]} 57. Kd4 {[%emt 0:00:06]} Rxb3 {[%emt 0:00:14]} 58. h8=Q {[%emt 0:00:07] And now e5+ would win.} b1=Q {[%emt 0:00:06][%cal Rb1a1]} 59. c5+ $2 {[%emt 0:01:13][%mdl 8192]} (59. Qxf6+ Kc7 60. Qe7+ Kb8 61. Qd8+ Kb7 62. Qd7+ Ka8 63. Qc8+ Ka7 64. Qc7+ Rb7 65. Qa5+ Kb8 66. Qd8+ Ka7 67. Qa5+ Kb8 68. Qd8+ Ka7 69. Qa5+) (59. Qd8+ $11 Kc6 60. Qc8+ Kd6 61. Qd8+ Ke6 62. Qe8+ Kd6 63. Qd8+) 59... Kc7 {[%emt 0:01:47]} 60. Qg7+ {[%emt 0:00:33]} Kc6 $2 {[%emt 0:00:54]} ({Better is} 60... Kb8 $1 $19 {( -> ...Qb2+)} 61. Kd5 Qa1) 61. Qxf6+ {[%emt 0:00:19]} Kb5 {[%emt 0:00:04]} (61... Kb7 $5 62. Qe7+ Ka8 63. Qe8+ Ka7 64. Qa4+ Kb8 65. Qe8+ Kc7 66. Qf7+ Kd8 67. Qf8+ Kd7 68. Qf7+ Kd8 69. Qf8+ Kd7 70. Qf7+ Kd8 $11) 62. Qb6+ {[%emt 0:00:40]} Ka4 {[%emt 0:00:03]} 63. Qa6+ {[%emt 0:00:23]} Kb4 {[%emt 0:00:04]} 64. Qc4+ $2 {[%emt 0:00:42][%mdl 8192]} (64. Qb6+ $11 Ka3 65. Qa5+ Kb2 66. Qd2+ Ka1 67. Qa5+ Kb2 68. Qd2+ Ka3 69. Qa5+ Kb2) 64... Ka5 $19 {[%emt 0:00:35]} 65. Kd5 {[%emt 0:00:27]} Rb4 {[%emt 0:00:52]} 66. Qd3 {[%emt 0:00:29]} Qa2+ {[%emt 0:00:43]} 67. Kd6 {[%emt 0:00:07]} Qa4 {[%emt 0:01:19]} 68. Kc7 {[%emt 0:00:52]} Rc4 {[%emt 0:01:35]} (68... Rd4 $142 69. Qh3 Kb4 70. Qf5 Qa5+ 71. Kb8 Qb5+ 72. Kc7 Qxc5+ 73. Qxc5+ Kxc5 74. e5 Re4 75. Kd8 Rxe5 76. Kd7 Rxe2 77. Kc7 Re7+ 78. Kd8 Kd6 79. Kc8 Kc6 80. Kb8 Re8+ 81. Ka7 Rg8 82. Ka6 Ra8#) 69. Qd5 {[%emt 0:00:28]} Qc2 {[%emt 0:11:03]} 70. c6+ {[%emt 0:00:26]} (70. Qa8+ Kb4 71. Qb7+ Kc3 72. Qa6) (70. Qa8+ $19 Kb4 71. Qb7+ Kc3 72. Qa6) 70... Rc5 {[%emt 0:00:10]} 71. Qd6 {[%emt 0:00:37]} Qc3 {[%emt 0:00:55]} (71... Kb5 $142 72. Qd4 Rxc6+ 73. Kd7 Rc7+ 74. Ke6 Qc6+ 75. Kf5 Rf7+ 76. Kg5 Qc5+ 77. Qd5 Kb4 78. Kg6 Rf1 79. Qd2+ Ka3 80. Qd3+ Kb2 81. Qd2+ Ka1 82. Qg5 Qd6+ 83. Kh5 Rh1+ 84. Kg4 Rg1+ 85. Kh5 Rxg5+ 86. Kxg5 Qe5+ 87. Kg6 Kb2 88. Kh6 Kc3 89. Kh7 Kd4 90. Kh6 Qxe4 91. Kh5 Ke5 92. Kg5 Qf5+ 93. Kh4 Kf4 94. e3+ Kf3 95. e4 Qg4#) 72. Kb7 {[%emt 0:00:29]} Qb4+ {[%emt 0:00:28]} 73. Kc7 {[%emt 0:00:09]} Qb6+ $2 {[%emt 0:02:02]} (73... Kb5 74. Qf6 Qb1) (73... Kb5 74. Qd3+ Rc4 75. Qd5+ Rc5 76. Qd3+ Rc4 77. Qd5+ Ka6) 74. Kd7 {[%emt 0:00:04] [#]} Qb5 $2 {[%emt 0:00:27]} (74... Ka6 75. Qd3+ Ka7) (74... Ka6 $1 $19 {Hoping for ...Ka7.} 75. Qd3+ Ka7) 75. Qd2+ $2 {[%emt 0:01:11][%mdl 8192]} (75. Qc7+ Qb6 76. e5) (75. Qc7+ $11 Qb6 76. e5) 75... Kb6 {[%emt 0:00:09] Black mates.} 76. Qd6 {[%emt 0:00:11]} Rxc6 {[%emt 0:02:44]} 77. Qb8+ {[%emt 0:00:05]} Ka5 {[%emt 0:00:17]} 78. Qxb5+ {[%emt 0:00:51]} Kxb5 {[%emt 0:00:05]} 79. e5 {[%emt 0:00:03] [#]} Kc5 $1 {[%emt 0:00:17]} 80. e6 {[%emt 0:00:07]} Rd6+ {[%emt 0:00:04]} 81. Ke7 {[%emt 0:00:24]} Kd5 {[%emt 0:00:06] Both players deserved the win here.  Weighted Error Value: White=0.30/Black=0.27 (precise)} 0-1

[Event "Hungarian Youth-ch U12 2022"]
[Site "Eger"]
[Date "2022.07.24"]
[Round "2.3"]
[White "Janosi, Bence"]
[Black "Bod, Marton"]
[Result "0-1"]
[ECO "A48"]
[WhiteElo "1428"]
[BlackElo "1758"]
[Annotator "NA RC COMBH"]
[PlyCount "62"]
[EventDate "2022.07.21"]
[EventType "tourn"]
[EventCountry "HUN"]
[SourceTitle "playchess.com"]
[Source "ChessBase"]
[SourceQuality "1"]
[TimeControl "40/5400+30:1800+30"]

1. d4 {[%emt 0:00:36]} Nf6 {[%emt 0:01:02]} 2. Nf3 {[%emt 0:00:12]} g6 {[%emt 0:00:13]} 3. c4 {[%emt 0:00:26]} Bg7 {[%emt 0:00:30]} 4. g3 {[%emt 0:00:16]} b6 {[%emt 0:02:59]} 5. Bg2 {[%emt 0:02:09]} Bb7 {[%emt 0:00:09]} 6. O-O {[%emt 0:00:43]} d5 {[%emt 0:01:32]} 7. Ne5 {[%emt 0:02:34]} O-O {[%emt 0:04:21]} 8. Nc3 {[%emt 0:02:53]} e6 {[%emt 0:01:15]} 9. Bg5 {[%emt 0:24:08]} h6 {[%emt 0:01:23]} 10. Bc1 {[%emt 0:04:12]} c6 {[%emt 0:16:32]} 11. Qa4 {[%emt 0:10:34]} Nfd7 {[%emt 0:11:17]} 12. Nxd7 {[%emt 0:02:27]} Nxd7 {[%emt 0:01:25]} 13. Rd1 {[%emt 0:04:22]} Qe7 {[%emt 0:05:33]} 14. e3 {[%emt 0:10:51]} a6 {[%emt 0:03:25]} 15. Qc2 {[%emt 0:03:05]} dxc4 {[%emt 0:00:28]} 16. Ne2 {[%emt 0:00:39]} b5 {[%emt 0:00:44]} 17. a4 {[%emt 0:00:18]} Nb6 {[%emt 0:01:17]} 18. Nc3 {[%emt 0:02:45]} e5 {[%emt 0:04:07]} 19. dxe5 {[%emt 0:01:36]} Bxe5 {[%emt 0:00:18]} 20. Qe4 {[%emt 0:03:59]} f5 {[%emt 0:01:36]} 21. Qf3 {[%emt 0:00:54]} Bxc3 {[%emt 0:02:22]} 22. bxc3 {[%emt 0:00:55]} Nxa4 {[%emt 0:00:31]} 23. Ba3 {[%emt 0:00:50]} Qg7 {[%emt 0:02:50]} 24. Bxf8 {[%emt 0:00:49]} Rxf8 {[%emt 0:00:08]} 25. Rac1 {[%emt 0:07:38]} Nxc3 {[%emt 0:01:00]} 26. Rd2 {[%emt 0:01:47]} a5 {[%emt 0:00:39]} 27. Kh1 {[%emt 0:01:22]} a4 {[%emt 0:01:05]} 28. h3 {[%emt 0:00:37]} a3 {[%emt 0:00:48]} 29. Rd6 {[%emt 0:00:57]} a2 {[%emt 0:00:56]} 30. Kh2 {[%emt 0:01:01]} Ne4 {[%emt 0:00:48]} 31. Re6 {[%emt 0:00:10]} Ng5 {[%emt 0:00:28]} 0-1

[Event "Hungarian Youth-ch U12 2022"]
[Site "Eger"]
[Date "2022.07.24"]
[Round "2.4"]
[White "Kovacs, Kristof"]
[Black "Feher, Botond"]
[Result "0-1"]
[ECO "A04"]
[WhiteElo "1812"]
[BlackElo "1747"]
[Annotator "NA RC COMBH"]
[PlyCount "70"]
[EventDate "2022.07.21"]
[EventType "tourn"]
[EventCountry "HUN"]
[SourceTitle "playchess.com"]
[Source "ChessBase"]
[SourceQuality "1"]
[TimeControl "40/5400+30:1800+30"]

1. Nf3 {[%emt 0:00:34]} c5 {[%emt 0:00:49]} 2. g3 {[%emt 0:00:15]} g6 {[%emt 0:01:02]} 3. Bg2 {[%emt 0:00:07]} Bg7 {[%emt 0:00:05]} 4. c3 {[%emt 0:00:20]} e5 {[%emt 0:13:17]} 5. d3 {[%emt 0:01:54]} Nc6 {[%emt 0:00:39]} 6. O-O {[%emt 0:00:15]} Nge7 {[%emt 0:00:06]} 7. e4 $11 {[%emt 0:00:34]} O-O {[%emt 0:00:10]} 8. Be3 {[%emt 0:00:56]} d6 {[%emt 0:00:05]} 9. d4 {[%emt 0:02:39]} cxd4 {[%emt 0:04:10]} 10. cxd4 {[%emt 0:00:07]} Bg4 {[%emt 0:00:24]} 11. d5 $1 {[%emt 0:01:15]} Nd4 $1 {[%emt 0:00:10]} 12. Bxd4 {[%emt 0:03:00]} exd4 {[%emt 0:00:07]} 13. Qd3 {[%emt 0:01:15]} Bxf3 {[%emt 0:03:36]} 14. Bxf3 {[%emt 0:00:08]} Qb6 {[%emt 0:00:19]} 15. Nd2 {[%emt 0:05:45]} Rac8 {[%emt 0:04:07]} 16. Nc4 {[%emt 0:03:17]} Qb4 {[%emt 0:09:47]} 17. Be2 {[%emt 0:05:25]} b5 {[%emt 0:00:22]} 18. Qa3 $2 {[%emt 0:02:44]} (18. Nd2 $11) 18... Rxc4 {[%emt 0:04:38]} 19. Qxa7 {[%emt 0:00:18]} Rc2 {[%emt 0:03:06]} 20. Bd1 {[%emt 0:00:09]} Nc8 {[%emt 0:00:53]} 21. Qb7 {[%emt 0:00:40]} Rxb2 {[%emt 0:04:32]} 22. Rc1 {[%emt 0:00:10]} Qd2 {[%emt 0:11:06]} 23. Bb3 {[%emt 0:01:42]} d3 {[%emt 0:03:57]} 24. Rxc8 {[%emt 0:00:37]} Bd4 {[%emt 0:00:10]} 25. Rxf8+ {[%emt 0:02:59]} Kxf8 {[%emt 0:00:07]} 26. Qc8+ {[%emt 0:00:09]} Kg7 {[%emt 0:00:11]} 27. Qh3 {[%emt 0:00:16]} Bxf2+ {[%emt 0:07:01]} 28. Kh1 {[%emt 0:00:06]} Qe3 {[%emt 0:00:14]} 29. Qg2 {[%emt 0:01:36]} Rxb3 {[%emt 0:03:58]} 30. Qxf2 {[%emt 0:03:15]} Qxf2 {[%emt 0:00:09]} 31. Rxf2 {[%emt 0:00:06]} Rc3 {[%emt 0:00:04]} 32. Rd2 {[%emt 0:00:40]} Rc1+ {[%emt 0:00:08]} 33. Kg2 {[%emt 0:00:26]} Rc2 {[%emt 0:00:04]} 34. e5 {[%emt 0:00:43]} Rxd2+ {[%emt 0:00:11]} 35. Kf1 {[%emt 0:00:04]} dxe5 {[%emt 0:00:24]} 0-1

[Event "Hungarian Youth-ch U12 2022"]
[Site "Eger"]
[Date "2022.07.24"]
[Round "2.5"]
[White "Onodi, Miklos"]
[Black "Juhasz, Edmond"]
[Result "1-0"]
[ECO "D02"]
[WhiteElo "1901"]
[BlackElo "1510"]
[Annotator "TA RC"]
[PlyCount "101"]
[EventDate "2022.07.21"]
[EventType "tourn"]
[EventCountry "HUN"]
[SourceTitle "playchess.com"]
[Source "ChessBase"]
[SourceQuality "1"]
[TimeControl "40/5400+30:1800+30"]

{[%evp 10,101,22,22,21,29,27,12,23,33,22,15,66,66,89,87,99,95,104,89,108,97,113,115,113,112,108,76,124,129,155,105,164,101,127,133,137,124,137,141,138,102,115,52,222,212,205,52,79,62,73,-31,66,51,842,836,1276,1265,2678,991,29991,1652,29986,29987,29990,29984,29980,2434,29985,29986,29986,29987,29987,29983,29983,29984,29984,29985,29984,29985,29994,29986,29986,29982,29982,29983,29988,29989,29989,29990,29990,29982,29982,29981]} 1. d4 {[%emt 0:00:32]} d5 {[%emt 0:00:46]} 2. Nf3 {[%emt 0:00:04]} c6 {[%emt 0:00:29]} 3. g3 {[%emt 0:00:06]} e6 {[%emt 0:00:22]} 4. Bg2 {[%emt 0:00:05]} Nf6 {[%emt 0:00:31]} 5. O-O {[%emt 0:00:12]} Nbd7 {[%emt 0:00:51]} 6. Nbd2 {[%emt 0:03:37][%cal Oe2e4]} Be7 {[%emt 0:03:27] D02: 1 d4 d5 2 Nf3 sidelines, including 2...Nf6 3 g3 and 2...Nf6 3 Bf4.} 7. Re1 {[%emt 0:00:17]} O-O {[%emt 0:01:00]} 8. e4 {[%emt 0:02:10]} Nxe4 {[%emt 0:04:22] The position is equal.} 9. Nxe4 {[%emt 0:00:08]} dxe4 {[%emt 0:00:07]} 10. Rxe4 {[%emt 0:00:25]} Nf6 {[%emt 0:01:24]} (10... b6 $11) 11. Re1 $14 {[%emt 0:00:56]} Bd7 {[%emt 0:02:24]} 12. Ne5 {[%emt 0:03:58] [#]} Bd6 $146 {[%emt 0:04:46]} ({Predecessor:} 12... Be8 13. c3 Nd7 14. Nd3 Qb6 15. Be3 Qc7 16. Bf4 Bd6 17. Bxd6 Qxd6 18. Qb3 b6 {1-0 (28) Plutarco,F (1879)-Ranalli,E (1210) LSS email 2017}) 13. c4 {[%emt 0:21:05]} h6 {[%emt 0:03:01]} 14. Bf4 {[%emt 0:00:46][%cal Oe5f7] And now Nxf7! would win.} Bc7 {[%emt 0:03:15]} 15. Qd2 {[%emt 0:03:37]} Nh7 {[%emt 0:12:53]} 16. Rad1 {[%emt 0:02:55]} Re8 {[%emt 0:08:58]} 17. Qc2 {[%emt 0:05:46][%cal Oe5f7] Black must now prevent Nxf7!} Nf6 {[%emt 0:03:27]} 18. b4 {[%emt 0:20:19]} Rb8 {[%emt 0:13:13]} (18... a5 $142) 19. a4 $16 {[%emt 0:01:22] 0x0.0005ec04f5c2dp-1022s more active pieces.} a6 {[%emt 0:03:44]} 20. Rd2 {[%emt 0:15:21]} (20. a5 $142) 20... Qc8 {[%emt 0:06:31]} (20... Qe7 $16 {was necessary.}) 21. Rc1 {[%emt 0:01:27]} (21. Rde2 $18) 21... Nh5 {[%emt 0:03:26]} 22. Be3 {[%emt 0:00:28]} Nf6 {[%emt 0:00:39]} 23. f4 {[%emt 0:01:25]} Bd6 {[%emt 0:04:36]} 24. Qb3 {[%emt 0:00:36]} Rd8 {[%emt 0:01:55]} 25. Rdc2 {[%emt 0:01:20]} Be8 {[%emt 0:01:52]} 26. d5 {[%emt 0:01:41]} (26. a5 $16) 26... Bxe5 $2 {[%emt 0:02:13]} ({Better is} 26... c5 $14) 27. fxe5 $18 {[%emt 0:00:23]} Nd7 {[%emt 0:00:49]} 28. dxe6 $2 {[%emt 0:00:27]} (28. Qb2 $18) 28... fxe6 {[%emt 0:00:34]} 29. Rf1 {[%emt 0:01:09]} Bg6 {[%emt 0:01:13]} 30. Rcf2 {[%emt 0:01:27]} ({White should try} 30. Re2 $16) 30... Qc7 {[%emt 0:01:12]} (30... Nxe5 $15 31. Bc5 Bf5) 31. c5 {[%emt 0:00:46]} Bf5 {[%emt 0:01:47][%mdl 8192] Black is now going downhill.} 32. Rxf5 {[%emt 0:00:20]} Re8 {[%emt 0:01:18]} 33. Rf7 {[%emt 0:00:23]} Qc8 {[%emt 0:00:40]} 34. Qc3 {[%emt 0:03:16]} Nf6 {[%emt 0:03:34] [#]} 35. R7xf6 {[%emt 0:00:57]} (35. exf6 $142 $1 e5 (35... Kxf7 36. fxg7+) 36. Rxg7+ Kh8 37. Qd3 e4 38. Bxe4 Qg4 39. Rh7+ Kg8 40. f7+ Kf8 41. fxe8=Q+ Kxe8 42. Bg6+ Qxg6 43. Qd7#) 35... gxf6 {[%emt 0:00:10]} 36. exf6 {[%emt 0:00:08]} Kf7 {[%emt 0:02:03]} 37. Bxh6 {[%emt 0:01:15]} Rh8 {[%emt 0:02:28]} 38. Bg7 {[%emt 0:00:03]} (38. Qd2 $142 Qd8 39. Qf4 Rc8 40. Bf3 Qd5 41. Bxd5 cxd5 {[#]} 42. Qg4 $1 Rhg8 43. Bg7) 38... Rh7 {[%emt 0:00:37]} 39. Qd3 {[%emt 0:00:21] White mates.} Rh5 {[%emt 0:00:34]} 40. Be4 {[%emt 0:00:00]} Rg5 {[%emt 0:00:00]} 41. Qe3 {[%emt 0:01:58]} Qd8 {[%emt 0:07:20]} 42. Qxg5 {[%emt 0:01:01]} Qd4+ {[%emt 0:00:08]} 43. Rf2 {[%emt 0:00:07]} Qxe4 {[%emt 0:00:49]} 44. Qh5+ {[%emt 0:00:11]} Kg8 {[%emt 0:00:57]} 45. f7+ {[%emt 0:02:05]} Kxg7 {[%emt 0:00:10] KQR-KQR} 46. f8=Q+ {[%emt 0:00:30]} Rxf8 {[%emt 0:00:17]} 47. Qg5+ {[%emt 0:00:04]} Kh7 {[%emt 0:00:42]} 48. Qe7+ {[%emt 0:00:03]} Kg6 {[%emt 0:00:26]} 49. Qxf8 {[%emt 0:00:11]} Qe1+ {[%emt 0:00:17]} 50. Rf1 {[%emt 0:00:05]} Qe3+ {[%emt 0:00:07]} 51. Qf2 {[%emt 0:00:04] Weighted Error Value: White=0.29 (precise) /Black=0.80} 1-0

[Event "Hungarian Youth-ch U12 2022"]
[Site "Eger"]
[Date "2022.07.24"]
[Round "2.6"]
[White "Hangyal, Dora"]
[Black "Torok, Rita"]
[Result "1-0"]
[ECO "C44"]
[WhiteElo "1244"]
[BlackElo "1275"]
[Annotator "NA RC COMBH"]
[PlyCount "61"]
[EventDate "2022.07.21"]
[EventType "tourn"]
[EventCountry "HUN"]
[SourceTitle "playchess.com"]
[Source "ChessBase"]
[SourceQuality "1"]
[TimeControl "40/5400+30:1800+30"]

1. e4 {[%emt 0:00:31]} e5 {[%emt 0:00:40]} 2. Nf3 {[%emt 0:00:06]} Nc6 {[%emt 0:00:10]} 3. d4 {[%emt 0:00:06]} exd4 {[%emt 0:02:07]} 4. Nxd4 {[%emt 0:00:09]} Nxd4 {[%emt 0:01:01]} 5. Qxd4 {[%emt 0:00:16]} d6 {[%emt 0:01:58]} 6. Bf4 {[%emt 0:00:48]} Be6 {[%emt 0:03:18]} 7. Nc3 {[%emt 0:01:30]} Nf6 {[%emt 0:01:41]} 8. O-O-O {[%emt 0:00:30]} Be7 {[%emt 0:02:54]} 9. Qe3 {[%emt 0:08:35]} O-O {[%emt 0:02:19]} 10. f3 {[%emt 0:00:16]} Nh5 {[%emt 0:03:42]} 11. Kb1 {[%emt 0:01:48]} Nxf4 {[%emt 0:03:14]} 12. Qxf4 {[%emt 0:00:30]} Bf6 {[%emt 0:03:44]} 13. Qe3 {[%emt 0:01:54]} a6 {[%emt 0:07:10]} 14. g4 {[%emt 0:01:45]} h6 {[%emt 0:01:13]} 15. Nd5 {[%emt 0:01:18]} Bxd5 {[%emt 0:02:37]} 16. Rxd5 {[%emt 0:00:14]} Re8 {[%emt 0:02:11]} 17. f4 {[%emt 0:01:43]} c6 {[%emt 0:02:37]} 18. Rd2 {[%emt 0:00:50]} g5 {[%emt 0:09:59]} 19. Rf2 {[%emt 0:05:37]} c5 {[%emt 0:01:15]} 20. c3 {[%emt 0:02:05]} Qe7 {[%emt 0:05:38]} 21. Bd3 {[%emt 0:00:21]} d5 {[%emt 0:09:46]} 22. e5 {[%emt 0:05:48]} gxf4 {[%emt 0:00:58]} 23. Qxf4 {[%emt 0:00:14]} Bg7 {[%emt 0:04:54]} 24. h4 {[%emt 0:03:37]} c4 {[%emt 0:01:04]} 25. Bc2 {[%emt 0:00:45]} Qf8 {[%emt 0:02:34]} 26. Qf5 {[%emt 0:02:24]} Qe7 {[%emt 0:02:07]} 27. Rhf1 {[%emt 0:01:39]} Kf8 {[%emt 0:04:00]} 28. Qh7 {[%emt 0:02:50]} Ra7 {[%emt 0:02:58]} 29. Rxf7+ {[%emt 0:00:30]} Qxf7 {[%emt 0:00:08]} 30. Rxf7+ {[%emt 0:00:05]} Kxf7 {[%emt 0:00:16]} 31. Bg6+ {[%emt 0:00:09]} 1-0

[Event "Hungarian Youth-ch U12 2022"]
[Site "Eger"]
[Date "2022.07.24"]
[Round "2.7"]
[White "Balogh, Gerda"]
[Black "Molnar, Dalma Reka"]
[Result "1/2-1/2"]
[ECO "B36"]
[WhiteElo "1531"]
[BlackElo "1521"]
[Annotator "NA RC COMBH"]
[PlyCount "42"]
[EventDate "2022.07.21"]
[EventType "tourn"]
[EventCountry "HUN"]
[SourceTitle "playchess.com"]
[Source "ChessBase"]
[SourceQuality "1"]
[TimeControl "40/5400+30:1800+30"]

1. e4 {[%emt 0:00:34]} c5 {[%emt 0:00:43]} 2. Nf3 {[%emt 0:00:08]} Nc6 {[%emt 0:00:05]} 3. d4 {[%emt 0:00:11]} cxd4 {[%emt 0:00:07]} 4. Nxd4 {[%emt 0:00:11]} g6 {[%emt 0:00:08]} 5. c4 {[%emt 0:00:05]} Nf6 {[%emt 0:00:04]} 6. Nc3 {[%emt 0:00:08]} d6 {[%emt 0:00:04]} 7. Be2 {[%emt 0:04:28]} Nxd4 {[%emt 0:00:09]} 8. Qxd4 {[%emt 0:00:14]} Bg7 {[%emt 0:00:03]} 9. Be3 {[%emt 0:00:39]} O-O {[%emt 0:00:06]} 10. Qd3 {[%emt 0:04:37]} Qa5 {[%emt 0:01:36]} 11. O-O {[%emt 0:03:09]} Be6 {[%emt 0:01:23]} 12. b3 {[%emt 0:09:14]} Rfc8 {[%emt 0:07:05]} 13. Bd2 {[%emt 0:04:49]} Qc7 {[%emt 0:03:34]} 14. Rac1 {[%emt 0:03:29]} a6 {[%emt 0:03:51]} 15. Nd5 {[%emt 0:05:52]} Bxd5 {[%emt 0:00:17]} 16. exd5 {[%emt 0:00:19]} Qd7 {[%emt 0:01:02]} 17. Rc2 {[%emt 0:09:05]} b5 {[%emt 0:04:58]} 18. Rfc1 {[%emt 0:03:41]} bxc4 {[%emt 0:03:05]} 19. Rxc4 {[%emt 0:00:46]} Rxc4 {[%emt 0:01:19]} 20. Qxc4 {[%emt 0:00:53]} e6 {[%emt 0:16:58]} 21. Qc6 {[%emt 0:01:53]} Ra7 {[%emt 0:09:44]} 1/2-1/2